[Event "1st Bangalore GM-Open-A 2024"]
[Site "Bangalore"]
[Date "2024.01.20"]
[Round "4.2"]
[White "Sammed Jaykumar, Shete"]
[Black "Pranav Anand"]
[Result "0-1"]
[ECO "A13"]
[WhiteElo "2441"]
[BlackElo "2513"]
[Annotator "TA"]
[PlyCount "92"]
[EventDate "2024.01.20"]
[EventType "swiss"]
[EventCountry "IND"]
[SourceTitle "playchess.com"]
[Source "ChessBase"]
[SourceQuality "1"]
[TimeControl "5400+30"]

{[%evp 14,92,6,0,39,23,33,0,0,0,0,0,0,0,0,0,0,-7,8,13,3,4,11,10,8,7,6,0,4,0,31,12,12,14,15,-56,-48,-55,0,0,0,0,-4,-68,-33,-81,-76,-157,-162,-204,-216,-200,-209,-259,-203,-215,-200,-252,-250,-593,-459,-654,-164,-170,0,-16,-19,-23,0,0,0,-846,-685,-29986,-29987,-29998,-29997,-29997,-29998,-29998,-29999]} 1. c4 {[%emt 0:00:11]} e6 {[%emt 0:00:10]} 2. g3 {[%emt 0:00:44]} d5 {[%emt 0:00:16]} 3. Bg2 {[%emt 0:00:13]} Nf6 {[%emt 0:00:05]} 4. Nf3 {[%emt 0:00:16]} d4 {[%emt 0:00:14]} 5. e3 {[%emt 0:00:44]} c5 {[%emt 0:00:29]} 6. exd4 {[%emt 0:00:14]} cxd4 {[%emt 0:00:02]} 7. O-O {[%emt 0:00:23]} Nc6 {[%emt 0:00:03]} 8. d3 {[%emt 0:00:06]} h6 {[%emt 0:00:04]} 9. Bf4 {[%emt 0:01:31]} Nd7 {[%emt 0:00:10] Prevents Ne5} 10. Na3 {[%emt 0:01:43]} Bc5 {[%emt 0:00:25] The position is equal.} 11. Nb5 {[%emt 0:08:27]} O-O $1 {[%emt 0:00:14]} (11... e5 12. Nxe5 Ndxe5 13. Bxe5 $16) 12. Bd6 {[%emt 0:05:19]} Bxd6 {[%emt 0:01:36]} 13. Nxd6 {[%emt 0:00:07]} Nc5 {[%emt 0:00:03]} 14. Nxc8 {[%emt 0:00:47]} Rxc8 {[%emt 0:00:10]} 15. Re1 {[%emt 0:03:33]} Qc7 {[%emt 0:06:39]} 16. a3 {[%emt 0:03:40]} a5 {[%emt 0:01:17]} 17. b3 {[%emt 0:00:19]} Rfe8 {[%emt 0:09:52]} 18. Rb1 {[%emt 0:03:01]} Na6 {[%emt 0:00:24]} 19. Re2 {[%emt 0:09:40]} Qd6 {[%emt 0:04:21]} 20. Ra2 {[%emt 0:12:20]} Rb8 {[%emt 0:07:25]} 21. Qd2 {[%emt 0:07:08]} b5 {[%emt 0:10:12]} 22. cxb5 {[%emt 0:04:42]} Rxb5 {[%emt 0:00:05]} 23. Rc2 {[%emt 0:00:11][%cal Oc2c6]} Ne7 {[%emt 0:01:02]} 24. Qc1 {[%emt 0:01:51]} (24. Rc4 $11) 24... Reb8 $15 {[%emt 0:07:15]} 25. Nd2 {[%emt 0:07:56]} e5 {[%emt 0:19:23]} (25... Nc5 $1 $15 26. a4 (26. Nc4 Qd8 $15) 26... Nxb3) 26. Nc4 {[%emt 0:03:58]} Qd8 {[%emt 0:02:14]} 27. Qe1 {[%emt 0:02:12]} f6 {[%emt 0:02:42]} 28. Rd1 {[%emt 0:08:45]} (28. Nd2 $11) 28... Kh8 {[%emt 0:04:33]} ({Don't play} 28... Rxb3 29. f4 $11) (28... Nd5 $5 {[%cal Rd5c3]} 29. a4 Rb4 30. Bxd5+ Qxd5 $17) 29. f4 {[%emt 0:06:38]} (29. Nd2 $15) 29... exf4 $17 {[%emt 0:00:57]} 30. Re2 {[%emt 0:00:07]} (30. gxf4 $142 Rxb3 31. Qxa5 Qxa5 32. Nxa5 Rxa3 33. Nc6 Nxc6 34. Rxc6) 30... Nd5 {[%emt 0:05:16]} 31. Re6 {[%emt 0:03:36] [#] And now Nd6 would win.} Nac7 $1 {[%emt 0:00:41]} 32. Rd6 {[%emt 0:00:17]} Qf8 {[%emt 0:06:10] Hoping for ...Nc3.} 33. Rc6 {[%emt 0:04:39]} Re8 {[%emt 0:01:18]} 34. Qd2 {[%emt 0:01:01]} fxg3 {[%emt 0:03:13]} ({Worse is} 34... Rxb3 35. Qxa5 Nc3 36. Rf1 $17) 35. hxg3 {[%emt 0:00:14]} Rxb3 {[%emt 0:01:16][%cal Od5c3]} 36. Be4 $2 {[%emt 0:01:12]} (36. Rf1 {is a better chance.} Rc3 37. Be4) 36... Nc3 {[%emt 0:03:26]} 37. Rxc7 {[%emt 0:00:12]} (37. Nd6 $142 Rd8 38. Re1) 37... Nxe4 $2 {[%emt 0:00:10]} (37... Rxe4 38. dxe4 Qb8) 38. dxe4 $19 {[%emt 0:00:11]} Rxg3+ $2 {[%emt 0:00:28]} (38... Rxe4 $19 39. Qg2 (39. Nxa5 Rxg3+ 40. Kf1 Qxa3 41. Rc8+ Kh7) 39... Rg4) 39. Kh2 {[%emt 0:00:28]} Rg4 {[%emt 0:00:35][%cal Bg3g4,Bg4e4,Be4h4][%mdl 32]} 40. Qxd4 {[%emt 0:01:17]} Rgxe4 {[%emt 0:00:49]} 41. Qd7 {[%emt 0:00:19]} Qg8 {[%emt 0:00:49]} 42. Qc6 {[%emt 0:00:39][%mdl 8192]} (42. Nxa5 $2 {is the wrong capture.} Qa2+ 43. Rd2 Re2+ 44. Kg3 Qxa3+ 45. Rd3 R8e3+ 46. Kf4 Re4+ 47. Kf5 Qxa5+ $19) (42. Rd4 $11 Rxd4 43. Qxd4) 42... Qh7 {[%emt 0:02:11] [#] ( -> ...Re2+)} 43. Rg1 {[%emt 0:00:33] aiming for Nd6.} Qf5 {[%emt 0:01:24] Black mates.} 44. Rgxg7 {[%emt 0:00:35]} Rh4+ {[%emt 0:00:16]} 45. Kg1 {[%emt 0:00:20]} Re1+ {[%emt 0:00:04]} 46. Kg2 {[%emt 0:00:04]} Re2+ {[%emt 0:00:03] Artfully played by Pranav Anand.   Weighted Error Value: White=0.62/Black=0.32} 0-1

[Event "1st Bangalore GM-Open-A 2024"]
[Site "Bangalore"]
[Date "2024.01.20"]
[Round "4.3"]
[White "Nitish Belurkar"]
[Black "Fedorov, Alexei"]
[Result "1/2-1/2"]
[ECO "E70"]
[WhiteElo "2435"]
[BlackElo "2457"]
[Annotator "ChessBase"]
[PlyCount "61"]
[EventDate "2024.01.20"]
[EventType "swiss"]
[EventCountry "IND"]
[SourceTitle "playchess.com"]
[Source "ChessBase"]
[SourceQuality "1"]
[TimeControl "5400+30"]

1. d4 {[%emt 0:00:04]} Nf6 {[%emt 0:00:07]} 2. c4 {[%emt 0:00:04]} g6 {[%emt 0:00:16]} 3. Nc3 {[%emt 0:00:05]} Bg7 {[%emt 0:00:05]} 4. e4 {[%emt 0:00:04]} d6 {[%emt 0:00:04]} 5. Bd3 {[%emt 0:00:05]} O-O {[%emt 0:00:58]} 6. Nge2 {[%emt 0:00:10]} Nc6 {[%emt 0:01:03]} 7. O-O {[%emt 0:00:19]} Nd7 {[%emt 0:02:24]} 8. Bc2 {[%emt 0:00:27]} e5 {[%emt 0:01:31]} 9. d5 {[%emt 0:00:05]} Nd4 {[%emt 0:01:29]} 10. Nxd4 {[%emt 0:00:08]} exd4 {[%emt 0:00:06]} 11. Ne2 {[%emt 0:00:10]} c5 {[%emt 0:06:29]} 12. dxc6 {[%emt 0:01:29]} bxc6 {[%emt 0:00:05]} 13. Nxd4 {[%emt 0:00:57]} Ne5 {[%emt 0:01:23]} 14. Rb1 {[%emt 0:07:34]} Bg4 {[%emt 0:11:00]} 15. f3 {[%emt 0:10:24]} Qb6 {[%emt 0:03:39]} 16. Kh1 {[%emt 0:09:33]} Nxc4 {[%emt 0:01:57]} 17. Nxc6 {[%emt 0:00:28]} Qxc6 {[%emt 0:00:45]} 18. fxg4 {[%emt 0:00:05]} Rfc8 {[%emt 0:04:58]} 19. Bd3 {[%emt 0:04:50]} Ne5 {[%emt 0:12:13]} 20. Bf4 {[%emt 0:03:21]} Nxd3 {[%emt 0:00:17]} 21. Qxd3 {[%emt 0:00:10]} Qc4 {[%emt 0:00:14]} 22. Qd5 {[%emt 0:16:03]} Qxd5 {[%emt 0:08:13]} 23. exd5 {[%emt 0:00:17]} Rc2 {[%emt 0:00:12]} 24. Rbe1 {[%emt 0:13:46]} Rxb2 {[%emt 0:07:12]} 25. Bxd6 {[%emt 0:02:31]} Rd8 {[%emt 0:04:39]} 26. Bc5 {[%emt 0:10:03]} Rxa2 {[%emt 0:00:53]} 27. Re7 {[%emt 0:00:04]} Bf8 {[%emt 0:00:04]} 28. Rxa7 {[%emt 0:00:04]} Rxa7 {[%emt 0:00:02]} 29. Bxa7 {[%emt 0:00:05]} Rxd5 {[%emt 0:00:02]} 30. Bb8 {[%emt 0:00:05]} h5 {[%emt 0:00:07]} 31. gxh5 {[%emt 0:00:02]} 1/2-1/2

[Event "1st Bangalore GM-Open-A 2024"]
[Site "Bangalore"]
[Date "2024.01.20"]
[Round "4.4"]
[White "Mitrabha, Guha"]
[Black "Viani Antonio Dcunha"]
[Result "1-0"]
[ECO "C55"]
[WhiteElo "2504"]
[BlackElo "2407"]
[Annotator "TA"]
[PlyCount "115"]
[EventDate "2024.01.20"]
[EventType "swiss"]
[EventCountry "IND"]
[SourceTitle "playchess.com"]
[Source "ChessBase"]
[SourceQuality "1"]
[TimeControl "5400+30"]

{[%evp 9,115,8,16,13,13,2,5,-4,0,0,16,0,0,-10,0,0,15,13,67,65,94,61,94,93,128,115,121,82,222,227,252,244,201,159,158,158,160,158,158,158,155,125,140,147,200,177,244,244,325,342,323,331,338,314,345,327,358,337,271,240,409,340,440,426,499,450,603,541,668,667,807,661,1480,1350,1243,926,900,0,0,0,0,0,8,8,410,411,368,361,1943,964,1002,1041,989,937,858,816,6808,529,29985,29985,29985,29987,29988,29989,29989,29990,29990,29991]} 1. e4 {[%emt 0:02:55]} e5 {[%emt 0:01:37]} 2. Nf3 {[%emt 0:00:10]} Nc6 {[%emt 0:00:07]} 3. Bc4 {[%emt 0:00:06]} Nf6 {[%emt 0:00:15]} 4. d3 {[%emt 0:00:08]} Be7 {[%emt 0:00:55]} 5. Nc3 {[%emt 0:00:43]} d6 {[%emt 0:00:19]} 6. a4 {[%emt 0:00:08] C55: Two Knights: 4 d3, 4 d4 exd4 5 e5 and Max Lange Attack.} O-O {[%emt 0:01:33]} 7. h3 {[%emt 0:00:52]} Be6 {[%emt 0:00:52]} 8. Ng5 {[%emt 0:05:20] The position is equal.} Bxc4 {[%emt 0:07:05]} 9. dxc4 {[%emt 0:00:16]} Nd4 {[%emt 0:01:14]} 10. Nf3 {[%emt 0:00:33][%cal Bg5f3,Bf3h2,Bh2g4][%mdl 32] [#]} Ne6 $146 {[%emt 0:04:59]} ({Predecessor:} 10... Nxf3+ 11. Qxf3 Nd7 12. b3 Nc5 13. O-O Bg5 14. Bb2 Qd7 15. Qf5 Qd8 16. Rad1 g6 {1-0 Kovacs,L-Vogt,L Zinnowitz International DSV-06 1969 (10)}) 11. O-O {[%emt 0:01:50]} c6 {[%emt 0:01:58]} 12. a5 {[%emt 0:07:54]} h6 {[%emt 0:00:42]} 13. Be3 {[%emt 0:02:32]} g5 {[%emt 0:02:56]} ({Better is} 13... Nh7 $11) 14. Nh2 $14 {[%emt 0:01:41]} Kg7 {[%emt 0:05:12]} 15. Ng4 {[%emt 0:02:48]} Nd7 {[%emt 0:04:00]} 16. Bd2 {[%emt 0:00:41] White is much more active.} f5 {[%emt 0:07:10]} 17. exf5 {[%emt 0:01:06]} Rxf5 {[%emt 0:00:24]} 18. a6 {[%emt 0:00:22]} bxa6 {[%emt 0:03:15]} (18... b6 $16) 19. Ne4 $18 {[%emt 0:00:24]} Qc7 {[%emt 0:10:42]} 20. Bb4 {[%emt 0:06:15]} (20. Rxa6 Qb7 21. Ra2 (21. Nxh6 Kxh6 22. Qg4 Kg6 $11) 21... Rf7 $16) 20... c5 {[%emt 0:19:18]} 21. Qd5 {[%emt 0:06:54]} Nf4 {[%emt 0:02:00]} 22. Qxa8 {[%emt 0:00:14]} Rf8 {[%emt 0:01:39]} 23. Ba5 {[%emt 0:00:34]} Nb6 {[%emt 0:00:08] [#]} 24. Qxf8+ {[%emt 0:08:51][%mdl 512]} Bxf8 {[%emt 0:00:03]} 25. b3 {[%emt 0:01:00]} h5 {[%emt 0:06:00] [#]} 26. Ne3 $1 {[%emt 0:00:49]} g4 {[%emt 0:00:44]} (26... Ne2+ $16 {is a better defense.} 27. Kh1 g4) 27. hxg4 {[%emt 0:03:33]} hxg4 {[%emt 0:00:03]} (27... Ne2+ $142 28. Kh1 hxg4) 28. Rfe1 {[%emt 0:01:00]} (28. Nxg4 Ne2+ 29. Kh1 Kg6) 28... Qc8 {[%emt 0:01:18]} 29. Rad1 {[%emt 0:00:26][%cal Ba1d1,Bd1d2,Bd2d5][%mdl 32]} Kg6 {[%emt 0:04:48]} 30. Rd2 {[%emt 0:05:58]} (30. Nxd6 Qc6 $18) 30... Qc6 {[%emt 0:05:35]} 31. Nxg4 {[%emt 0:00:35]} Ne6 {[%emt 0:00:35]} 32. Bxb6 {[%emt 0:02:43]} axb6 {[%emt 0:00:33] Black is weak on the light squares} 33. Rd5 {[%emt 0:03:07][%cal Od5e5] Strongly threatening Rxe5!} Kg7 {[%emt 0:03:59]} 34. f3 {[%emt 0:04:10]} Nd4 $2 {[%emt 0:02:19]} (34... b5 {might work better.} 35. Ne3 Nc7) 35. Ne3 {[%emt 0:00:10]} b5 {[%emt 0:00:26]} 36. c3 {[%emt 0:00:45]} Nxb3 {[%emt 0:00:46] [#]} 37. Nxd6 $1 {[%emt 0:00:08][%mdl 512]} b4 {[%emt 0:00:26] [#]} (37... Na5 38. cxb5) 38. cxb4 $1 {[%emt 0:01:04] Hoping for Nef5+.} cxb4 {[%emt 0:00:18]} (38... Kg8 39. b5) 39. Nef5+ {[%emt 0:01:41] Excellent horsemanship.} Kh7 {[%emt 0:00:57]} 40. Re4 {[%emt 0:01:18]} Nd4 {[%emt 0:01:35]} 41. Rh4+ {[%emt 0:07:26]} (41. Rexe5 Nxf5 42. Nxf5 b3 $11) 41... Kg6 {[%emt 0:01:02]} 42. Rg4+ {[%emt 0:00:08]} Kf6 {[%emt 0:00:24]} 43. Rg8 $2 {[%emt 0:00:52]} (43. Nxd4 $18 Qxd6 44. Rxd6+ Bxd6 45. Nb3) 43... Ne6 $1 $11 {[%emt 0:00:53]} 44. g4 {[%emt 0:12:03][%cal Bg2g4,Bg4g5][%mdl 32] g5+! would be deadly. Dancing on a razor blade.} Bxd6 {[%emt 0:00:01]} 45. Nxd6 {[%emt 0:00:01] Ne4+ is the strong threat.} Qb6+ $1 {[%emt 0:00:23]} 46. c5 {[%emt 0:01:40][%mdl 64] Deflection} Nxc5 {[%emt 0:00:05][%mdl 8192] [#]} (46... Qc6 $11 {and Black has nothing to worry.} 47. Ne4+ Kf7) 47. g5+ $1 $18 {[%emt 0:00:03]} Ke6 {[%emt 0:00:17]} 48. Nc4 $1 {[%emt 0:00:02][%csl LRb6,LRe5]} Qb5 $2 {[%emt 0:00:51]} (48... Qa7 49. Rd6+ (49. Rxe5+ Kf7 $15) 49... Kf7) 49. Rxe5+ {[%emt 0:00:02]} Kd7 {[%emt 0:00:10]} 50. Rg7+ {[%emt 0:00:40]} Kc6 {[%emt 0:00:45]} 51. Rg6+ {[%emt 0:00:49]} Kc7 {[%emt 0:00:22]} 52. Nb6 {[%emt 0:02:51]} Qd3 {[%emt 0:01:37]} 53. Nd5+ {[%emt 0:01:19]} (53. Rxc5+ $142 Kb7 54. Rgc6 Qxf3 55. Nd5 Qg4+ 56. Kf2 Qf5+ 57. Ke1 Qb1+ 58. Kf2 Qf5+ 59. Ke1 Qe5+ 60. Kd1 Qd4+ 61. Ke2 Qg4+ 62. Kf1 Qh3+ 63. Ke1 Qg3+ 64. Kd1 Qd3+ 65. Kc1 Qa3+ 66. Kd2 Qb2+ 67. Kd3 Qb1+ 68. Kd2 Qb2+ 69. Ke1 Qe5+ 70. Kd1 Qd4+ 71. Kc2 Qe4+ 72. Kb2 Qd4+ 73. Kb3 Qd3+ 74. Kxb4 Qe4+ 75. Ka3) 53... Kd8 {[%emt 0:00:34]} 54. Rg8+ {[%emt 0:01:23] White mates.} (54. Nxb4 $2 Qxg6 55. Kg2 Nd7 $19) 54... Kd7 {[%emt 0:00:01]} 55. Re7+ {[%emt 0:00:01]} (55. Nxb4 $2 {perishes.} Qd4+ 56. Kf1 Qxe5 $19) 55... Kd6 {[%emt 0:00:08]} 56. Rd8+ {[%emt 0:00:03]} (56. Nxb4 $2 {is the wrong capture.} Qd1+ 57. Kf2 Kxe7 $19) 56... Nd7 {[%emt 0:00:07]} 57. Rexd7+ {[%emt 0:00:04]} Kc5 {[%emt 0:00:16]} 58. Rc8+ {[%emt 0:00:08] A superb game by Mitrabha.   Weighted Error Value: White=0.31/Black=0.57} 1-0

[Event "1st Bangalore GM-Open-A 2024"]
[Site "Bangalore"]
[Date "2024.01.20"]
[Round "4.5"]
[White "Laxman, R.R."]
[Black "Gupta, Abhijeet"]
[Result "0-1"]
[ECO "E60"]
[WhiteElo "2338"]
[BlackElo "2605"]
[Annotator "TA"]
[PlyCount "130"]
[EventDate "2024.01.20"]
[EventType "swiss"]
[EventCountry "IND"]
[SourceTitle "playchess.com"]
[Source "ChessBase"]
[SourceQuality "1"]
[TimeControl "5400+30"]

{[%evp 17,130,0,0,0,0,0,0,0,0,-1,-6,0,0,0,0,0,0,0,-1,-1,-4,-9,-4,-16,0,-27,-10,-14,-14,-31,-36,-60,-58,-50,-61,-60,-40,-61,-61,-61,-61,-61,-61,-61,-61,-61,-61,-61,-61,-75,-61,-61,-61,-61,-61,-61,-61,-67,-61,-61,-61,-68,-58,-77,-34,-56,-56,-56,-56,-56,-56,-56,-56,-56,-56,-59,-59,-59,-59,-59,-59,-59,-59,-29967,-29958,-29959,-29961,-29969,-29964,-29965,-29962,-29973,0,-29964,-29965,-29965,-29967,-29967,-29965,-29966,-29967,-29967,-29968,-29969,-29970,-29970,-29971,-29975,-29977,-29977,-29978,-29978,-29979,-29977,-29978]} 1. Nf3 {[%emt 0:01:35]} Nf6 {[%emt 0:00:17]} 2. b3 {[%emt 0:00:45]} g6 {[%emt 0:00:18]} 3. Bb2 {[%emt 0:01:28]} Bg7 {[%emt 0:00:07]} 4. g3 {[%emt 0:01:13]} d6 {[%emt 0:03:00]} 5. d4 {[%emt 0:00:07]} O-O {[%emt 0:01:38]} 6. Bg2 {[%emt 0:00:07]} c5 {[%emt 0:00:40]} 7. c4 {[%emt 0:03:35]} d5 {[%emt 0:00:30]} 8. O-O {[%emt 0:05:05]} Nc6 {[%emt 0:02:13]} 9. cxd5 {[%emt 0:03:06]} Nxd5 {[%emt 0:00:10][%cal Bf6d5,Bd5f4,Bf4e2][%mdl 32]} 10. Qd2 {[%emt 0:00:28] E60: King's Indian: Unusual lines and Fianchetto Variation without Nc3.} cxd4 {[%emt 0:19:58]} 11. Nxd4 {[%emt 0:00:08]} Nxd4 {[%emt 0:00:34]} 12. Bxd4 {[%emt 0:00:04] The position is equal.} Nf4 {[%emt 0:00:50]} 13. Bxg7 {[%emt 0:00:19]} Qxd2 {[%emt 0:00:04][%mdl 64] Remove Defender} 14. Nxd2 {[%emt 0:00:04]} Nxe2+ {[%emt 0:00:03]} (14... Kxg7 $2 15. gxf4 Rd8 16. Rfd1 $18) 15. Kh1 {[%emt 0:00:02]} Kxg7 {[%emt 0:00:06]} 16. Rfe1 {[%emt 0:00:20]} Nd4 {[%emt 0:00:04] Hoping for ...Nc2.} 17. Rxe7 {[%emt 0:00:36]} Rd8 {[%emt 0:00:28] aiming for ...Nc2.} 18. Nc4 {[%emt 0:05:42]} (18. Bxb7 Bxb7+ 19. Rxb7 Nc2 $17) 18... Kf8 {[%emt 0:02:32]} 19. Re5 {[%emt 0:01:25]} ({Much worse is} 19. Bxb7 Rb8 20. Bxc8 Kxe7 $17) 19... Rb8 {[%emt 0:05:33] [#]} 20. h3 $146 {[%emt 0:04:05]} ({Predecessor:} 20. Rc1 Be6 21. h4 b6 22. Ree1 Rbc8 23. Ne3 h6 24. Bb7 Rxc1 25. Rxc1 Ke7 26. Kg2 {½-½ Bodi,T (2324)-Wu,D (2281) Budapest FS08 GM 2022 (4)}) 20... Be6 {[%emt 0:00:29]} 21. Ne3 {[%emt 0:03:22]} b6 {[%emt 0:03:39]} 22. Rd1 {[%emt 0:00:32]} Rd6 {[%emt 0:14:46]} 23. Nc2 {[%emt 0:01:38]} (23. Bd5 $5 {[%cal Rd1d4]} f6 24. Re4 Bxd5 25. Nxd5 $11) 23... Rbd8 {[%emt 0:00:39]} 24. Nxd4 {[%emt 0:00:06]} Rxd4 {[%emt 0:00:04]} 25. Rxd4 {[%emt 0:00:37]} Rxd4 $15 {[%emt 0:00:05][%mdl 4096] Endgame KRB-KRB} 26. Re2 $1 {[%emt 0:00:06]} a5 {[%emt 0:00:06]} 27. h4 {[%emt 0:03:30]} a4 {[%emt 0:08:41]} 28. bxa4 $1 {[%emt 0:00:06]} Rxa4 {[%emt 0:00:06]} 29. Rb2 $1 {[%emt 0:00:04]} Rxa2 {[%emt 0:00:07] Black is more active.} ({But not} 29... Bxa2 30. Rxb6 Be6 31. Kh2 $11) 30. Rxb6 {[%emt 0:00:05]} Rxf2 {[%emt 0:00:04]} 31. Kg1 {[%emt 0:00:35]} Ra2 {[%emt 0:00:10]} 32. Rb4 {[%emt 0:00:34]} Ke7 {[%emt 0:01:17]} 33. Rf4 {[%emt 0:00:09]} f5 {[%emt 0:00:54]} 34. Rf2 {[%emt 0:04:01]} Ra4 {[%emt 0:00:07]} 35. Rf4 {[%emt 0:00:13]} Ra5 {[%emt 0:00:11]} 36. Rf2 {[%emt 0:00:36]} Kf6 {[%emt 0:00:20]} 37. Bf3 {[%emt 0:00:25]} Bc4 {[%emt 0:00:40]} 38. Rc2 {[%emt 0:00:14]} Ra4 {[%emt 0:01:00]} 39. Kf2 {[%emt 0:00:25]} Ke5 {[%emt 0:01:56]} 40. Rb2 {[%emt 0:01:07]} f4 {[%emt 0:01:40]} 41. gxf4+ {[%emt 0:06:28]} Kxf4 {[%emt 0:00:05]} 42. Bd1 {[%emt 0:00:03]} Ra2 {[%emt 0:03:25]} 43. Rxa2 {[%emt 0:00:06]} Bxa2 {[%emt 0:00:04] KB-KB} 44. Bf3 {[%emt 0:01:10]} Bb1 {[%emt 0:00:37]} 45. Be2 {[%emt 0:01:18]} Be4 {[%emt 0:00:29]} 46. Bd1 $1 {[%emt 0:00:09]} Bd3 {[%emt 0:00:10]} 47. Bf3 {[%emt 0:00:20]} Bf5 {[%emt 0:00:06]} 48. Be2 {[%emt 0:00:17]} Bg4 {[%emt 0:00:29]} 49. Bc4 {[%emt 0:08:36]} Bd1 {[%emt 0:01:06] ( -> ...Kg4)} 50. Be6 {[%emt 0:05:01][%mdl 8192] Black converts the advantage convincingly.} (50. Bg8 $15) 50... Bc2 {[%emt 0:03:30]} 51. h5 {[%emt 0:00:05] [#]} g5 $1 {[%emt 0:00:12]} 52. h6 {[%emt 0:00:03]} Bf5 {[%emt 0:01:51]} 53. Bd5 {[%emt 0:00:11]} Be4 {[%emt 0:00:46]} 54. Be6 {[%emt 0:00:17]} Bf5 $2 {[%emt 0:03:04]} (54... g4 {mates} 55. Bd7 g3+ 56. Kf1 Kg5 57. Bh3 Kxh6 58. Bg2 Bd3+ 59. Ke1 Kg5 60. Bh1 Kf4 61. Bg2 Bf5 62. Kd2 h5 63. Kd1 Bg4+ 64. Kd2 h4 65. Ke1 h3 66. Bc6 Bf3 67. Bxf3 Kxf3 68. Kd1 g2 69. Kc2 h2 70. Kc3 g1=Q 71. Kb3 h1=Q 72. Kc4 Qb6 73. Kd5 Ke3+ 74. Ke5 Qh5#) 55. Bc4 $2 {[%emt 0:00:51][%mdl 8192]} (55. Bd5 $11 Kg4 56. Bf3+ Kh3 57. Kg1) 55... Kg4 {[%emt 0:00:18] Black mates.} 56. Be2+ {[%emt 0:01:33] [#]} Kh3 $1 {[%emt 0:00:05]} 57. Kg1 {[%emt 0:00:16]} Kg3 {[%emt 0:00:05]} 58. Bf1 {[%emt 0:00:47]} Kf3 {[%emt 0:00:55]} 59. Bc4 {[%emt 0:00:23]} Be4 {[%emt 0:00:43]} 60. Bf1 {[%emt 0:00:51]} Kg4 {[%emt 0:02:20]} 61. Be2+ {[%emt 0:00:08]} Kf5 {[%emt 0:00:06]} 62. Bh5 {[%emt 0:00:10]} g4 {[%emt 0:00:41]} 63. Kf2 {[%emt 0:00:25]} Kg5 {[%emt 0:00:19]} 64. Be8 {[%emt 0:00:07]} Kxh6 {[%emt 0:00:22]} 65. Ke3 {[%emt 0:00:03]} Bg6 {[%emt 0:00:11] Weighted Error Value: White=0.26 (precise) /Black=0.13 (very precise)} 0-1

[Event "1st Bangalore GM-Open-A 2024"]
[Site "Bangalore"]
[Date "2024.01.20"]
[Round "4.6"]
[White "Sethuraman, S.P."]
[Black "Kushagra Mohan"]
[Result "1-0"]
[ECO "D35"]
[WhiteElo "2594"]
[BlackElo "2374"]
[Annotator "TA"]
[PlyCount "53"]
[EventDate "2024.01.20"]
[EventType "swiss"]
[EventCountry "IND"]
[SourceTitle "playchess.com"]
[Source "ChessBase"]
[SourceQuality "1"]
[TimeControl "5400+30"]

{[%evp 12,53,29,23,38,35,33,31,54,0,53,31,55,5,66,60,102,87,107,90,110,73,158,156,152,144,148,140,199,186,354,344,441,430,446,448,433,442,428,443,506,471,575,558]} 1. d4 {[%emt 0:00:20]} Nf6 {[%emt 0:04:44]} 2. c4 {[%emt 0:00:09]} e6 {[%emt 0:00:04]} 3. Nc3 {[%emt 0:02:29]} d5 {[%emt 0:00:04]} 4. cxd5 {[%emt 0:04:40]} exd5 {[%emt 0:00:05]} 5. Bg5 {[%emt 0:00:06][%cal Bc1g5,Bg5h4,Bh4g3,Bg3h2][%mdl 32]} Bb4 {[%emt 0:00:04]} 6. e3 {[%emt 0:01:28]} h6 {[%emt 0:00:04]} 7. Bh4 {[%emt 0:01:11]} g5 {[%emt 0:00:05] D35: Queen's Gambit Declined: Exchange Variation.} 8. Bg3 {[%emt 0:00:04]} Ne4 {[%emt 0:00:03]} 9. Nge2 {[%emt 0:01:11]} h5 {[%emt 0:00:06] White is slightly better.} 10. h3 {[%emt 0:00:04]} (10. Qb3 $14 Nc6 11. f3 Nxg3 12. hxg3) 10... Nc6 {[%emt 0:05:42]} (10... Bxc3+ $11 11. Nxc3 Nxg3 12. fxg3 Qd6) 11. Bh2 $1 $14 {[%emt 0:05:29] [#]} Be6 $146 {[%emt 0:01:08]} ({Predecessor:} 11... g4 12. Bf4 gxh3 13. Rc1 Be6 14. a3 Nxc3 15. Nxc3 Bd6 16. Qf3 Bxf4 17. Qxf4 hxg2 18. Bxg2 {½-½ Bluebaum,M (2670)-Shevchenko,K (2665) EU-chT 24th Budva 2023 (6.3)}) 12. a3 {[%emt 0:04:31]} ({Much worse is} 12. f3 Nxc3 13. Nxc3 a6 $11) ({White should play} 12. Rc1 $14) 12... Nxc3 {[%emt 0:04:34]} (12... Qf6 $1 $11 13. Bg1 Nxc3 14. Nxc3 Bxc3+ 15. bxc3 O-O-O) 13. Nxc3 {[%emt 0:01:58]} Bd6 {[%emt 0:00:06]} 14. Bxd6 {[%emt 0:01:28]} Qxd6 {[%emt 0:00:05]} 15. Rc1 $1 {[%emt 0:03:07]} f5 {[%emt 0:08:43]} 16. Be2 {[%emt 0:08:08]} h4 {[%emt 0:02:59] [#]} ({Black should try} 16... a6) 17. Qb3 $1 $16 {[%emt 0:02:15]} O-O {[%emt 0:10:13]} 18. Qxb7 {[%emt 0:02:39] Nb5 would be deadly.} Rab8 {[%emt 0:00:04] [#]} 19. Qa6 {[%emt 0:06:53] White is more active.} ({But not} 19. Nb5 Rxb7 20. Nxd6 cxd6 $16) 19... Rxb2 {[%emt 0:11:34]} (19... Bc8 $16 20. Qd3 Ne7) 20. Na4 $18 {[%emt 0:03:51][%csl LRb2,LRc6]} Rxe2+ $2 {[%emt 0:12:48]} (20... Rb6 21. Nxb6 axb6) 21. Qxe2 {[%emt 0:00:15]} Bd7 {[%emt 0:00:13]} 22. Nc5 {[%emt 0:03:03] White is clearly winning.} Be8 {[%emt 0:00:24]} 23. O-O {[%emt 0:01:07]} Ne7 {[%emt 0:01:06]} 24. f4 {[%emt 0:01:50]} gxf4 {[%emt 0:00:25]} 25. exf4 {[%emt 0:00:40][%cal Be3f4,Bf4e5][%mdl 32]} ({Don't do} 25. Rxf4 Ng6 26. Rf2 Nh8 $18) 25... Bf7 {[%emt 0:00:05]} 26. Qe5 {[%emt 0:01:33]} Qxe5 {[%emt 0:00:16]} 27. fxe5 {[%emt 0:00:39] Weighted Error Value: White=0.10 (very precise) /Black=0.46} 1-0